bitfinex/quotes_SOLUSD_20250607
["timestamp","ask_amount","ask_price","bid_price","bid_amount"]
[1749316201914,5.13388006,151.24,151.22,2.4777385]
[1749316202114,5.13388006,151.24,151.2,88.7]
[1749316202322,5.13388006,151.24,151.21,2.47773867]
[1749316202529,11.74591354,151.24,151.22,2.47773867]
[1749316202733,11.74591354,151.24,151.2,88.7]
[1749316202924,11.74591354,151.24,151.21,2.47781304]
[1749316203123,11.74591354,151.24,151.22,2.47781233]
[1749316203335,11.74591354,151.24,151.2,88.7]
[1749316203740,11.74591354,151.24,151.21,2.47851116]
[1749316203926,11.74591354,151.24,151.22,2.47851116]
[1749316204238,11.74591354,151.24,151.2,95.31374514]
[1749316204435,11.74591354,151.24,151.21,2.47850696]
[1749316204645,11.74591354,151.24,151.22,2.47876908]
[1749316204941,11.74591354,151.24,151.2,88.7]
[1749316205247,11.74591354,151.24,151.21,2.47974576]
[1749316205443,11.74591354,151.24,151.22,2.48012728]
[1749316205649,11.74591354,151.24,151.2,88.7]
[1749316205946,11.74591354,151.24,151.21,2.47997801]
[1749316206136,11.74591354,151.24,151.22,2.47997801]
[1749316206337,11.74591354,151.24,151.2,88.7]
[1749316206519,11.74591354,151.24,151.21,2.48003855]
[1749316206719,11.74591354,151.24,151.2,88.7]
[1749316207140,11.74591354,151.24,151.21,2.48013976]
[1749316207419,11.74591354,151.24,151.22,2.48013976]
[1749316207642,11.74591354,151.24,151.2,88.7]
[1749316207852,11.74591354,151.24,151.21,2.48032119]
[1749316208041,5.13388006,151.23,151.2,88.7]
[1749316208525,5.13388006,151.23,151.21,2.4800737]
[1749316208848,5.13388006,151.23,151.2,88.7]
[1749316209052,5.13388006,151.23,151.21,2.4800737]
[1749316209231,5.13388006,151.23,151.22,2.4800737]
[1749316209650,5.13388006,151.23,151.2,88.7]
[1749316209850,5.13388006,151.23,151.21,2.47963762]
[1749316210049,5.13388006,151.23,151.22,2.47963762]
[1749316210220,5.13388006,151.23,151.2,88.7]
[1749316210632,5.13388006,151.23,151.21,2.47971164]
[1749316210848,5.13388006,151.23,151.22,2.47971164]
[1749316211044,5.13388006,151.23,151.22,2.47975587]
[1749316211420,5.13388006,151.24,151.22,2.47975587]
[1749316211746,5.13388006,151.24,151.2,95.3137498]
[1749316212128,5.13388006,151.24,151.21,2.47943645]
[1749316212443,5.13388006,151.24,151.22,2.47943574]
[1749316212642,5.13388006,151.24,151.2,95.3137498]
[1749316212836,11.74595276,151.24,151.21,2.47996832]
[1749316213039,11.74595276,151.24,151.22,2.47996832]
[1749316213243,11.74595276,151.24,151.2,88.7]
[1749316213948,11.74595276,151.24,151.21,2.48000849]
[1749316214133,11.74595276,151.24,151.22,2.48000849]
[1749316214334,5.13388006,151.23,151.2,88.7]
[1749316214534,5.13388006,151.23,151.21,2.4800087]
[1749316214736,5.13388006,151.23,151.22,2.4800087]
[1749316215451,5.13388006,151.23,151.19,6.61402035]
[1749316215949,5.13388006,151.23,151.2,2.4798152]
[1749316216152,5.13388006,151.23,151.21,2.4798152]
[1749316216338,5.13388006,151.23,151.22,2.4798152]
[1749316216953,5.13388006,151.23,151.19,6.61402035]
[1749316217156,5.13388006,151.23,151.2,2.48081832]
[1749316217450,5.13388006,151.23,151.19,6.61402035]
[1749316217755,5.13388006,151.23,151.2,2.48081803]
[1749316218049,5.13388006,151.23,151.21,2.48081803]
[1749316218249,5.13388006,151.24,151.22,2.48081803]
[1749316218441,5.13388006,151.24,151.19,6.61402035]
[1749316218640,5.13388006,151.24,151.2,2.47929741]
[1749316218841,11.74588944,151.24,151.21,2.47944208]
[1749316219025,11.74588944,151.24,151.19,11.74790041]
[1749316219452,11.74588944,151.24,151.2,2.47915986]
[1749316219659,11.74588944,151.24,151.19,11.74790041]
[1749316220148,11.74588944,151.24,151.2,2.47914206]
[1749316220339,11.74588944,151.24,151.21,2.47907088]
[1749316220538,11.74588944,151.24,151.19,11.74790041]
[1749316220956,11.74588944,151.24,151.2,2.47883556]
[1749316221132,11.74588944,151.24,151.21,2.47882148]
[1749316221333,5.13388006,151.24,151.22,2.47882518]
[1749316221532,5.13388006,151.24,151.23,2.47886048]
[1749316221752,11.31672357,151.27,151.22,5.13388006]
[1749316221943,5.13388006,151.27,151.23,2.47761047]
[1749316222145,5.13388006,151.27,151.24,2.47761047]
[1749316222342,5.13388006,151.27,151.23,5.13388006]
[1749316222538,5.13388006,151.27,151.24,2.47246183]
[1749316222733,5.13388006,151.27,151.23,5.13388006]
[1749316222935,5.13388006,151.27,151.24,2.47215241]
[1749316223238,5.13388006,151.27,151.23,11.74620733]
[1749316223448,5.13388006,151.27,151.24,2.47213758]
[1749316223644,5.13388006,151.27,151.25,2.47209263]
[1749316223845,5.13388006,151.27,151.23,11.74620733]
[1749316224046,5.13388006,151.27,151.24,2.4721597]
[1749316224235,5.13388006,151.27,151.25,2.4721597]
[1749316224436,11.74468488,151.27,151.22,11.7466542]
[1749316224636,11.74468488,151.27,151.23,2.47220465]
[1749316224958,11.74468488,151.27,151.22,11.7466542]
[1749316225146,11.74468488,151.27,151.23,2.47145012]
[1749316225349,11.74468488,151.27,151.24,2.47149775]
[1749316225548,11.74468488,151.27,151.25,2.47149775]
[1749316225749,11.74468488,151.27,151.22,11.7466542]
[1749316225949,11.74468488,151.27,151.23,2.46984571]
[1749316226148,11.74468488,151.27,151.22,11.7466542]
[1749316226149,11.74468488,151.27,151.24,2.46984571]
[1749316226340,5.13388006,151.25,151.21,45.31388006]
[1749316226540,5.13388006,151.24,151.2,5.13388006]
[1749316226847,5.13388006,151.24,151.21,2.47133601]
[1749316227061,5.13388006,151.24,151.22,2.47133601]
[1749316227234,5.13388006,151.25,151.2,5.13388006]
[1749316227438,5.13388006,151.25,151.21,14.21831769]
[1749316227738,5.13388006,151.25,151.22,2.47111841]
[1749316227940,5.13388006,151.25,151.21,11.74719928]
[1749316228148,5.13388006,151.25,151.22,2.47216852]
[1749316228361,5.13388006,151.25,151.21,11.74719928]
[1749316228865,5.13388006,151.25,151.22,2.47230843]
[1749316229048,5.13388006,151.25,151.21,11.74719928]
[1749316229247,5.13388006,151.25,151.22,2.47230884]
[1749316229448,5.13388006,151.25,151.21,11.74719928]
[1749316229649,5.13388006,151.25,151.22,2.47230884]
[1749316229844,5.13388006,151.25,151.21,11.74719928]
[1749316230274,5.13388006,151.25,151.22,2.47239064]
[1749316230451,5.13388006,151.25,151.21,11.74719928]
[1749316230658,5.13388006,151.25,151.22,2.47238953]
[1749316230856,5.13388006,151.25,151.21,11.74719928]
[1749316231057,23.78352892,151.26,151.22,2.47256674]
[1749316231259,23.78352892,151.26,151.23,2.47256674]
[1749316231559,23.78352892,151.26,151.21,11.74719928]
[1749316231758,23.78352892,151.26,151.22,2.47170185]
[1749316231960,23.78352892,151.26,151.23,2.47170185]
[1749316232139,23.78352892,151.26,151.21,11.74719928]
[1749316232345,5.13388006,151.26,151.22,2.47101444]
[1749316232559,5.13388006,151.27,151.23,2.47101359]
[1749316232740,5.13388006,151.27,151.24,2.47101359]
[1749316232946,5.13388006,151.27,151.23,6.61244462]
[1749316233248,5.13388006,151.27,151.24,2.46974972]
[1749316233450,5.13388006,151.27,151.23,11.74632468]
[1749316233669,5.13388006,151.27,151.24,2.46969373]
[1749316233868,5.13388006,151.27,151.23,11.74632468]
[1749316234044,5.13388006,151.27,151.24,2.46968913]
[1749316234367,1.5911,151.29,151.24,5.13388006]
[1749316234556,5.13388006,151.29,151.25,2.4693284]
[1749316234867,5.13388006,151.29,151.24,5.13388006]
[1749316235054,5.13388006,151.29,151.25,2.46905183]
[1749316235257,5.13388006,151.29,151.25,5.13388006]
[1749316235866,25.25907626,151.3,151.25,11.7450357]
[1749316236067,26.0,151.31,151.26,7.6023055]
[1749316236266,5.13388006,151.3,151.26,5.13388006]
[1749316236578,5.13388006,151.3,151.27,2.46807294]
[1749316236759,5.13388006,151.3,151.26,5.13388006]
[1749316236959,5.13388006,151.3,151.27,2.4686822]
[1749316237164,8.01402283,151.3,151.26,14.62475416]
[1749316237363,8.01402283,151.29,151.27,2.46830843]
[1749316237543,8.01402283,151.28,151.23,58.47402283]
[1749316238080,8.01402283,151.28,151.24,10.48322642]
[1749316238244,8.01402283,151.28,151.24,8.01402283]
[1749316238667,8.01402283,151.29,151.25,6.61155337]
[1749316239984,8.01402283,151.29,151.25,14.6255762]
[1749316240188,8.01402283,151.3,151.26,8.01402283]
[1749316241063,8.01402283,151.3,151.27,2.46785543]
[1749316241263,8.01402283,151.3,151.26,14.62509819]
[1749316241663,8.01402283,151.3,151.27,2.46811359]
[1749316241980,25.25874925,151.31,151.26,14.62509819]
[1749316242183,8.01402283,151.3,151.26,14.62509819]
[1749316242681,8.01402283,151.29,151.25,14.62546497]
[1749316242876,8.01402283,151.29,151.26,2.46826329]
[1749316243081,8.01402283,151.29,151.25,14.62546497]
[1749316243259,8.01402283,151.29,151.26,2.46826329]
[1749316243577,8.01402283,151.29,151.25,14.62546497]
[1749316243777,8.01402283,151.29,151.26,2.46818852]
[1749316243956,6.60943255,151.3,151.26,2.46818852]
[1749316243957,14.62345538,151.3,151.26,2.46818907]
[1749316244157,14.62345538,151.3,151.25,14.62546497]
[1749316244353,14.62345538,151.3,151.26,2.46822348]
[1749316244662,14.62345538,151.3,151.25,14.62546497]
[1749316244856,14.62345538,151.3,151.26,2.46820945]
[1749316245058,8.01402283,151.3,151.26,8.01402283]
[1749316245289,8.01402283,151.3,151.27,2.4675318]
[1749316245481,8.01402283,151.3,151.26,8.01402283]
[1749316245674,8.01402283,151.3,151.27,2.46753107]
[1749316245872,8.01402283,151.3,151.26,8.01402283]
[1749316246661,8.01402283,151.3,151.27,2.46770733]
[1749316246870,8.01402283,151.3,151.26,14.62501009]
[1749316247060,8.01402283,151.3,151.27,2.46781875]
[1749316247261,8.01402283,151.3,151.26,14.62501009]
[1749316247479,14.62312564,151.31,151.27,2.46789926]
[1749316247775,8.01402283,151.31,151.26,14.62501009]
[1749316247981,8.01402283,151.31,151.27,2.46780778]
[1749316248155,8.01402283,151.31,151.26,14.62501009]
[1749316248359,8.01402283,151.31,151.27,10.48166584]
[1749316248558,8.01402283,151.31,151.27,8.01402283]
[1749316248885,8.01402283,151.32,151.28,9.07764547]
[1749316249058,8.01402283,151.32,151.28,6.61025912]
[1749316250677,8.01402283,151.32,151.28,8.01402283]
[1749316251772,8.01402283,151.32,151.28,6.61025912]
[1749316252660,8.259477,151.33,151.28,6.61025912]
[1749316252859,8.01402283,151.32,151.28,14.62428195]
[1749316253767,14.62219983,151.33,151.28,14.62428195]
[1749316255468,8.01402283,151.33,151.28,14.62428195]
[1749316255883,14.62210707,151.33,151.28,14.62428195]
[1749316256684,8.01402283,151.32,151.28,6.61025912]
[1749316257186,5.12828078,151.32,151.27,5.12828078]
[1749316257691,6.60808424,151.33,151.27,5.12828078]
[1749316257866,5.12828078,151.32,151.28,5.12828078]
[1749316258468,5.12828078,151.32,151.28,11.73822612]
[1749316258981,6.60808424,151.33,151.28,11.73822612]
[1749316259178,11.73636502,151.33,151.28,11.73822612]
[1749316260467,5.12828078,151.33,151.29,5.12828078]
[1749316260669,5.12828078,151.34,151.3,5.12828078]
[1749316262372,5.12828078,151.36,151.31,11.73722929]
[1749316262565,25.36082964,151.37,151.33,5.12828078]
[1749316262767,5.12828078,151.37,151.33,5.12828078]
[1749316262986,11.73445831,151.38,151.33,5.12828078]
[1749316263874,5.12828078,151.37,151.33,5.12828078]
[1749316264180,5.12828078,151.37,151.32,15.40828078]
[1749316265182,8.00748818,151.37,151.32,18.28748818]
[1749316265561,8.00748818,151.36,151.32,18.28748818]
[1749316265767,8.00748818,151.35,151.32,10.28]
[1749316265968,6.60807506,151.33,151.32,10.28]
[1749316266873,14.61556324,151.33,151.32,10.28]
[1749316267986,8.00748818,151.33,151.32,10.28]
[1749316268166,9.66008818,151.36,151.32,10.28]
[1749316268371,8.00748818,151.35,151.32,10.28]
[1749316270296,14.61486884,151.35,151.32,10.28]
[1749316272770,14.61440225,151.36,151.32,18.28748818]
[1749316274374,6.60606545,151.38,151.35,8.00748818]
[1749316274574,40.61310744,151.39,151.35,8.00748818]
[1749316276883,6.60561926,151.39,151.36,8.00748818]
[1749316277184,14.61199435,151.42,151.37,8.00748818]
[1749316277500,8.00748818,151.41,151.37,8.00748818]
[1749316278284,6.60501981,151.4,151.37,8.00748818]
[1749316279503,14.61250799,151.4,151.36,8.00748818]
[1749316283900,14.61224318,151.41,151.37,8.00748818]
[1749316286790,44.64964886,151.44,151.37,8.00748818]
[1749316286994,8.00748818,151.42,151.38,8.00748818]
[1749316288293,8.00748818,151.42,151.39,8.00748818]
[1749316288294,6.60422429,151.42,151.39,8.00748818]
[1749316290211,6.60371128,151.43,151.39,8.00748818]
[1749316290399,6.60371128,151.43,151.37,16.88623282]
[1749316290710,6.60371128,151.43,151.4,8.00748818]
[1749316290897,6.60371128,151.43,151.39,8.00748818]
[1749316292311,6.60371128,151.43,151.37,16.88623282]
[1749316292312,14.61119946,151.43,151.37,10.28]
[1749316292494,8.00748818,151.42,151.37,18.28748818]
[1749316293204,8.00748818,151.41,151.37,18.28748818]
[1749316293399,14.61334226,151.39,151.37,10.28]
[1749316293604,8.00748818,151.38,151.37,10.28]
[1749316293803,8.00748818,151.38,151.34,8.00748818]
[1749316295804,8.00748818,151.38,151.33,16.88781005]
[1749316296017,14.61346089,151.38,151.34,8.00748818]
[1749316296915,8.00748818,151.37,151.33,18.28748818]
[1749316297504,6.60597271,151.38,151.34,8.00748818]
[1749316297505,14.61346089,151.38,151.34,8.00748818]
[1749316300106,14.61346089,151.38,151.33,16.88805686]
[1749316300309,14.61346089,151.38,151.34,8.00748818]
[1749316303707,8.00748818,151.37,151.33,18.28748818]
[1749316303912,8.00748818,151.37,151.34,2.46056618]
[1749316304209,8.00748818,151.37,151.33,18.28748818]
[1749316304610,8.00748818,151.37,151.34,2.46047027]
[1749316304809,8.00748818,151.37,151.33,18.28748818]
[1749316305013,14.61382349,151.37,151.34,2.46035915]
[1749316305362,8.00748818,151.37,151.33,24.89552795]
[1749316306726,8.00748818,151.37,151.34,2.46032556]
[1749316306929,14.61383086,151.37,151.33,18.28748818]
[1749316307133,14.61383086,151.37,151.34,2.46054515]
[1749316307326,14.61383086,151.37,151.33,106.98748818]
[1749316307622,14.61383086,151.37,151.34,2.46046213]
[1749316307828,14.61383086,151.37,151.33,106.98748818]
[1749316308430,14.61383086,151.37,151.34,2.46169856]
[1749316308633,14.61383086,151.37,151.33,106.98748818]
[1749316309210,14.61383086,151.37,151.34,2.46174318]
[1749316309531,14.61383086,151.37,151.33,106.98748818]
[1749316309729,14.61383086,151.37,151.34,2.46150864]
[1749316309914,14.61383086,151.37,151.33,106.98748818]
[1749316310809,14.61383086,151.37,151.34,2.46172313]
[1749316311031,14.61383086,151.37,151.33,106.98748818]
[1749316311216,14.61383086,151.37,151.34,2.46501781]
[1749316311419,14.61383086,151.37,151.35,2.46501781]
[1749316311620,14.61383086,151.37,151.34,88.7]
[1749316311827,14.61383086,151.37,151.35,2.46482593]
[1749316312033,14.61383086,151.37,151.34,88.7]
[1749316312521,14.61383086,151.37,151.35,2.4648619]
[1749316312714,14.61383086,151.37,151.34,88.7]
[1749316313110,14.61383086,151.37,151.35,2.46483311]
[1749316313310,14.61383086,151.37,151.34,88.7]
[1749316313511,8.00748818,151.36,151.34,88.7]
[1749316314715,14.61468976,151.36,151.34,88.7]
[1749316316339,8.00748818,151.36,151.34,88.7]
[1749316317338,8.00748818,151.36,151.33,98.98]
[1749316319443,14.61431192,151.36,151.33,98.98]
[1749316319653,8.00748818,151.34,151.33,10.28]
[1749316319827,8.00748818,151.34,151.29,113.03058818]
[1749316320145,8.00748818,151.34,151.29,106.98748818]
[1749316320521,8.00748818,151.34,151.3,2.46630855]
[1749316320846,8.00748818,151.31,151.27,88.7]
[1749316321034,8.00748818,151.29,151.28,2.46716608]
[1749316321227,8.00748818,151.29,151.25,98.98]
[1749316321433,8.00748818,151.29,151.26,2.46798879]
[1749316321631,8.00748818,151.29,151.27,2.46798879]
[1749316321924,8.00748818,151.29,151.25,105.59153457]
[1749316322133,8.00748818,151.29,151.26,2.46832794]
[1749316322330,8.00748818,151.29,151.25,105.59153457]
[1749316322530,8.00748818,151.29,151.26,2.46832794]
[1749316322752,8.00748818,151.29,151.25,98.98]
[1749316322928,8.00748818,151.29,151.26,2.46832721]
[1749316323248,8.00748818,151.29,151.25,106.98748818]
[1749316323451,8.00748818,151.29,151.26,2.46815064]
[1749316323633,8.00748818,151.28,151.25,98.98]
[1749316323829,8.00748818,151.27,151.26,2.46796922]
[1749316324044,8.00748818,151.27,151.25,10.28]
[1749316324559,8.00748818,151.29,151.25,18.28748818]
[1749316324740,8.00748818,151.27,151.25,10.28]
[1749316326445,8.00748818,151.28,151.25,10.28]
[1749316327451,8.00748818,151.27,151.25,10.28]
[1749316328945,8.00748818,151.28,151.25,10.28]
[1749316329853,14.61745434,151.29,151.25,10.28]
[1749316333365,8.00748818,151.29,151.25,24.89887642]
[1749316335033,14.61732472,151.29,151.25,10.28]
[1749316335954,8.00748818,151.28,151.25,10.28]
[1749316336156,8.00748818,151.26,151.23,38.08]
[1749316336467,8.00748818,151.26,151.22,8.00748818]
[1749316336631,8.00748818,151.25,151.21,10.28]
[1749316336834,8.00748818,151.24,151.21,10.28]
[1749316337260,8.00748818,151.23,151.21,10.28]
[1749316337469,8.00748818,151.22,151.17,10.28]
[1749316337640,8.00748818,151.2,151.17,10.28]
[1749316337840,8.00748818,151.22,151.17,18.28748818]
[1749316338034,8.00748818,151.22,151.18,8.00748818]
[1749316339061,1.6634,151.24,151.19,8.00748818]
[1749316339243,9.67088818,151.24,151.2,8.00748818]
[1749316340463,8.00748818,151.24,151.2,8.00748818]
[1749316341346,8.00748818,151.24,151.19,8.00748818]
[1749316341947,8.00748818,151.23,151.19,8.00748818]
[1749316343555,8.00748818,151.22,151.18,103.32183748]
[1749316344465,8.00748818,151.23,151.19,8.00748818]
[1749316345558,6.61221628,151.24,151.19,8.00748818]
[1749316345749,8.00748818,151.23,151.19,14.62153]
[1749316347863,14.62005076,151.23,151.19,8.00748818]
[1749316348068,14.62005076,151.23,151.18,103.32198311]
[1749316351874,8.00748818,151.22,151.18,103.32198311]
[1749316354061,14.62038957,151.22,151.18,96.70748818]
[1749316355271,8.00748818,151.21,151.18,88.7]
[1749316356151,14.62038957,151.22,151.18,88.7]
[1749316357279,6.61290139,151.22,151.18,88.7]
[1749316357776,8.00748818,151.22,151.18,95.31454603]
[1749316358759,8.00748818,151.22,151.18,6.61454603]
[1749316359683,8.00748818,151.23,151.19,8.00748818]
[1749316360397,8.00748818,151.24,151.19,8.00748818]
[1749316360694,6.61205892,151.24,151.19,8.00748818]
[1749316360877,14.6195471,151.24,151.19,14.62154282]
[1749316361058,6.61205892,151.24,151.19,14.62154282]
[1749316361260,14.6195471,151.24,151.19,14.62154282]
[1749316362495,8.00748818,151.24,151.19,14.62154282]
[1749316363691,34.00748818,151.25,151.2,8.00748818]
[1749316363892,34.00748818,151.25,151.21,2.46719944]
[1749316364095,34.00748818,151.25,151.2,8.00748818]
[1749316364390,40.61911383,151.25,151.21,2.46715692]
[1749316364574,40.61911383,151.25,151.2,8.00748818]
[1749316364776,40.61911383,151.25,151.21,2.46734501]
[1749316364978,40.61911383,151.25,151.2,8.00748818]
[1749316365181,34.00748818,151.25,151.21,6.61331922]
[1749316365585,63.12118765,151.28,151.22,8.00748818]
[1749316365791,8.00748818,151.26,151.22,8.00748818]
[1749316365975,8.00748818,151.26,151.21,14.6208074]
[1749316366378,8.00748818,151.26,151.22,2.46705373]
[1749316366681,8.00748818,151.26,151.21,14.6208074]
[1749316366880,8.00748818,151.26,151.22,2.46703195]
[1749316367202,8.00748818,151.26,151.21,14.6208074]
[1749316367374,8.00748818,151.26,151.22,2.46706349]
[1749316367575,8.00748818,151.26,151.21,14.6208074]
[1749316367776,8.00748818,151.26,151.22,9.08020564]
[1749316368084,8.00748818,151.26,151.22,6.6128506]
[1749316373305,8.00748818,151.25,151.21,96.70748818]
[1749316373506,8.00748818,151.25,151.22,2.46879616]
[1749316373692,8.00748818,151.25,151.21,96.70748818]
[1749316373896,8.00748818,151.24,151.21,88.7]
[1749316374583,14.61964725,151.24,151.21,88.7]
[1749316376489,14.61964725,151.24,151.2,18.28748818]
[1749316376698,14.61964725,151.24,151.21,2.47105565]
[1749316376893,6.61215907,151.24,151.2,18.28748818]
[1749316378307,6.61215907,151.24,151.21,2.47092218]
[1749316378483,6.61215907,151.24,151.2,18.28748818]
[1749316378683,6.61215907,151.24,151.21,2.47075097]
[1749316378882,6.61215907,151.24,151.2,18.28748818]
[1749316379197,6.61215907,151.24,151.21,2.47120338]
[1749316379513,6.61215907,151.24,151.2,18.28748818]
[1749316379710,6.61215907,151.24,151.21,2.47104994]
[1749316379875,6.61215907,151.24,151.2,18.28748818]
[1749316380480,6.61215907,151.24,151.2,8.00748818]
[1749316380883,6.61215907,151.24,151.21,2.47437254]
[1749316381083,6.61215907,151.24,151.2,8.00748818]
[1749316381307,6.61215907,151.24,151.21,2.47450518]
[1749316381507,6.61215907,151.24,151.2,8.00748818]
[1749316381818,6.61215907,151.24,151.21,2.47470716]
[1749316382011,6.61166313,151.25,151.2,14.62112907]
[1749316382209,14.61915131,151.25,151.21,2.47432589]
[1749316382390,14.61915131,151.25,151.22,2.47432589]
[1749316382589,14.61915131,151.25,151.2,14.62112907]
[1749316382981,14.61915131,151.25,151.21,2.47452737]
[1749316383312,5.13271309,151.25,151.22,2.47429363]
[1749316383530,5.13271309,151.25,151.21,5.13271309]
[1749316383696,5.13271309,151.25,151.22,2.47414746]
[1749316383899,5.13271309,151.25,151.21,5.13271309]
[1749316384095,5.13271309,151.25,151.22,2.47362182]
[1749316384303,11.74448643,151.25,151.21,5.13271309]
[1749316384519,11.74448643,151.25,151.22,2.47357925]
[1749316384723,11.74448643,151.25,151.21,5.13271309]
[1749316385024,11.74448643,151.25,151.22,2.47371299]
[1749316385207,11.74448643,151.25,151.21,5.13271309]
[1749316385407,11.74448643,151.25,151.22,2.47371299]
[1749316385612,11.74448643,151.25,151.21,5.13271309]
[1749316385797,11.74448643,151.25,151.22,2.47392332]
[1749316385997,11.74448643,151.25,151.21,5.13271309]
[1749316386425,5.13271309,151.24,151.21,5.13271309]
[1749316386725,5.13271309,151.24,151.2,5.13271309]
[1749316387113,5.13271309,151.24,151.21,2.47383099]
[1749316387309,5.13271309,151.24,151.2,5.13271309]
[1749316387624,11.74475344,151.24,151.2,5.13271309]
[1749316387822,11.74475344,151.24,151.21,2.47342046]
[1749316388120,11.74475344,151.24,151.2,5.13271309]
[1749316388321,11.74475344,151.24,151.21,2.47304761]
[1749316388509,11.74475344,151.24,151.2,5.13271309]
[1749316388697,11.74475344,151.24,151.21,2.47304761]
[1749316388898,11.74475344,151.24,151.2,5.13271309]
[1749316389104,11.74475344,151.24,151.21,2.47302913]
[1749316389323,11.74475344,151.24,151.2,5.13271309]
[1749316389527,11.74475344,151.24,151.21,2.47303298]
[1749316389727,11.74475344,151.24,151.2,5.13271309]
[1749316389900,11.74475344,151.24,151.21,2.47299378]
[1749316390106,11.74475344,151.24,151.2,5.13271309]
[1749316390326,11.74475344,151.24,151.21,2.47288627]
[1749316390513,11.74475344,151.24,151.2,5.13271309]
[1749316390717,11.74475344,151.24,151.21,2.47332247]
[1749316390921,11.74475344,151.24,151.2,5.13271309]
[1749316391102,11.74475344,151.24,151.21,2.47309414]
[1749316391304,11.74475344,151.24,151.2,5.13271309]
[1749316391505,11.74475344,151.24,151.21,2.47306789]
[1749316391803,11.74475344,151.24,151.2,5.13271309]
[1749316393019,11.74475344,151.24,151.21,2.47304094]
[1749316393219,11.74475344,151.24,151.2,5.13271309]
[1749316393530,11.74475344,151.24,151.21,2.47304094]
[1749316393732,11.74475344,151.24,151.2,5.13271309]
[1749316393905,11.74475344,151.24,151.21,2.47304094]
[1749316394106,11.74475344,151.24,151.2,5.13271309]
[1749316394321,11.74475344,151.24,151.21,2.472882]
[1749316394523,11.74475344,151.24,151.2,5.13271309]
[1749316395333,11.74475344,151.24,151.21,2.47243587]
[1749316395515,11.74475344,151.24,151.2,5.13271309]
[1749316395713,11.74475344,151.24,151.21,2.47251847]
[1749316395933,11.74475344,151.24,151.2,5.13271309]
[1749316396433,11.74475344,151.24,151.21,2.47253267]
[1749316396632,11.74475344,151.24,151.2,5.13271309]
[1749316396926,11.74475344,151.24,151.21,2.47182501]
[1749316397139,11.74475344,151.24,151.2,5.13271309]
[1749316397310,11.74475344,151.24,151.21,2.47186522]
[1749316397511,11.74475344,151.24,151.2,5.13271309]
[1749316397948,11.74475344,151.24,151.21,2.47174877]
[1749316398237,11.74475344,151.24,151.2,5.13271309]
[1749316398406,11.74475344,151.24,151.21,2.47176534]
[1749316398610,11.74475344,151.24,151.2,5.13271309]
[1749316398826,11.74475344,151.24,151.21,2.47161067]
[1749316399035,11.74475344,151.24,151.2,5.13271309]
[1749316399244,5.13271309,151.24,151.2,11.74643554]
[1749316399440,5.13271309,151.24,151.21,2.47142602]
[1749316399638,6.61203178,151.24,151.2,11.74643554]
[1749316399919,6.61203178,151.24,151.21,2.4714559]
[1749316400135,6.61203178,151.24,151.2,11.74643554]
[1749316400450,6.61203178,151.24,151.2,5.13271309]
[1749316400632,6.61203178,151.24,151.21,2.4714559]
[1749316400942,6.61203178,151.24,151.2,5.13271309]
[1749316401146,6.61203178,151.24,151.21,2.4714559]
[1749316401446,6.61203178,151.24,151.2,5.13271309]
[1749316401820,6.61203178,151.24,151.21,2.47121395]
[1749316402021,6.61203178,151.24,151.2,5.13271309]
[1749316402346,6.61203178,151.24,151.21,2.47130072]
[1749316402648,6.61203178,151.24,151.2,11.74643488]
[1749316402977,6.61203178,151.24,151.21,2.47131149]
[1749316403253,6.61203178,151.24,151.2,5.13271309]
[1749316403548,6.61203178,151.24,151.21,2.47250757]
[1749316403738,6.61203178,151.24,151.2,5.13271309]
[1749316404043,6.61203178,151.24,151.21,2.47250801]
[1749316404239,6.61203178,151.24,151.2,5.13271309]
[1749316404752,6.61203178,151.24,151.21,2.47258965]
[1749316404935,6.61203178,151.24,151.2,5.13271309]
[1749316405247,6.61203178,151.24,151.21,2.47258965]
[1749316405454,6.61203178,151.24,151.2,5.13271309]
[1749316405663,6.61203178,151.24,151.21,2.47255737]
[1749316405959,6.61203178,151.24,151.2,5.13271309]
[1749316406165,6.61203178,151.24,151.21,2.47255683]
[1749316406332,6.61203178,151.24,151.2,5.13271309]
[1749316407024,6.61203178,151.24,151.21,2.47287798]
[1749316407229,6.61203178,151.24,151.2,5.13271309]
[1749316407435,6.61203178,151.24,151.21,2.47279324]
[1749316407628,6.61203178,151.24,151.2,5.13271309]
[1749316408128,6.61203178,151.24,151.21,2.47264186]
[1749316408331,6.61203178,151.24,151.2,5.13271309]
[1749316408545,6.61203178,151.24,151.21,2.47255314]
[1749316408753,6.61203178,151.24,151.2,5.13271309]
[1749316408959,6.61203178,151.24,151.21,2.47256333]
[1749316409140,6.61203178,151.24,151.2,5.13271309]
[1749316409535,6.61203178,151.24,151.21,2.47276717]
[1749316409739,6.61203178,151.24,151.2,5.13271309]
[1749316410040,6.61203178,151.24,151.21,2.47281976]
[1749316410258,6.61203178,151.24,151.2,5.13271309]
[1749316410436,5.13271309,151.23,151.21,2.47278694]
[1749316410651,5.13271309,151.22,151.18,10.28]
[1749316410828,5.13271309,151.22,151.19,2.47365273]
[1749316411034,5.13271309,151.22,151.18,15.41271309]